fUSD/lending_fUSD_20250206
["ID","MTS","AMOUNT","RATE_DAILY","PERIOD"]
[351907035,1738834242320,-500.0,0.0002,3]
[351907037,1738834242329,-500.0,0.0002,3]
[351907039,1738834242338,-393.11443953,0.0002,3]
[351907041,1738834242347,-504.42114542,0.0002,3]
[351907043,1738834242356,-500.0,0.0002,3]
[351907045,1738834242366,-500.0,0.0002,3]
[351907047,1738834242375,-502.66187996,0.0002,3]
[351907049,1738834242384,-500.0,0.0002,3]
[351907051,1738834242393,-500.31522589,0.0002,3]
[351907053,1738834242402,-500.0,0.0002,3]
[351907055,1738834242411,-500.0,0.0002,3]
[351907057,1738834242421,-500.0,0.0002,3]
[351907059,1738834242430,-500.0,0.0002,3]
[351907061,1738834242439,-500.0,0.0002,3]
[351907063,1738834242448,-500.0,0.0002,3]
[351907065,1738834242457,-500.0,0.0002,3]
[351907067,1738834242466,-500.0,0.0002,3]
[351907069,1738834242475,-502.53289331,0.0002,3]
[351907071,1738834242484,-500.0,0.0002,3]
[351907073,1738834242492,-500.0,0.0002,3]
[351907075,1738834242501,-500.0,0.0002,3]
[351907077,1738834242511,-500.0,0.0002,3]
[351907079,1738834242520,-500.0,0.0002,3]
[351907081,1738834242529,-500.0,0.0002,3]
[351907083,1738834242538,-500.0,0.0002,3]
[351907085,1738834242547,-500.0,0.0002,3]
[351907087,1738834242556,-502.29042593,0.0002,3]
[351907089,1738834242565,-500.0,0.0002,3]
[351907091,1738834242575,-500.0,0.0002,3]
[351907093,1738834242584,-500.0,0.0002,3]
[351907095,1738834242592,-500.46887542,0.0002,3]
[351907097,1738834242602,-500.0,0.0002,3]
[351907099,1738834242611,-500.0,0.0002,3]
[351907101,1738834242620,-500.0,0.0002,3]
[351907103,1738834242629,-508.37471371,0.0002,3]
[351907105,1738834242639,-500.0,0.0002,3]
[351907107,1738834242648,-502.89758734,0.0002,3]
[351907109,1738834242657,-500.0,0.0002,3]
[351907111,1738834242667,-500.0,0.0002,3]
[351907113,1738834242676,-500.0,0.0002,3]
[351907115,1738834242685,-505.02261273,0.0002,3]
[351907117,1738834242694,-500.0,0.0002,3]
[351907119,1738834242703,-500.0,0.0002,3]
[351907121,1738834242712,-503.25156606,0.0002,3]
[351907123,1738834242721,-500.0,0.0002,3]
[351907125,1738834242730,-500.0,0.0002,3]
[351907127,1738834242739,-502.5544929,0.0002,3]
[351907129,1738834242748,-500.38908533,0.0002,3]
[351907131,1738834242757,-500.0,0.0002,3]
[351907133,1738834242766,-503.19489683,0.0002,3]
[351907136,1738834242775,-500.0,0.0002,3]
[351907138,1738834242784,-503.03821324,0.0002,3]
[351907140,1738834242793,-500.0,0.0002,3]
[351907142,1738834242803,-502.94547709,0.0002,3]
[351907144,1738834242812,-505.98175847,0.0002,3]
[351907146,1738834242821,-501.60140474,0.0002,3]
[351907148,1738834242831,-500.0,0.0002,3]
[351907150,1738834242840,-503.60215071,0.0002,3]
[351907152,1738834242849,-500.0,0.0002,3]
[351907154,1738834242860,-500.0,0.0002,3]
[351907156,1738834242871,-504.74793016,0.0002,3]
[351907158,1738834242880,-269.45193561,0.0002,3]
[351907160,1738834242890,-504.18766811,0.0002,3]
[351907162,1738834242900,-169.25823629,0.0002,3]
[351907164,1738834242910,-500.0,0.0002,3]
[351907166,1738834242919,-500.0,0.0002,3]
[351907168,1738834242934,-500.0,0.0002,3]
[351907170,1738834242944,-500.0,0.0002,3]
[351907172,1738834242954,-494.46490063,0.0002,3]
[351907174,1738834242963,-500.0,0.0002,3]
[351907176,1738834242973,-500.0,0.0002,3]
[351907178,1738834242983,-576.3036665,0.0002,3]
[351907180,1738834242992,-500.0,0.0002,3]
[351907182,1738834243002,-217.6747279,0.0002,3]
[351907184,1738834243011,-500.0,0.0002,3]
[351907186,1738834243021,-503.6412976,0.0002,3]
[351907188,1738834243030,-613.74415633,0.0002,3]
[351907191,1738834243040,-500.0,0.0002,3]
[351907211,1738834243187,-500.0,0.0002,3]
[351907213,1738834243198,-644.49843512,0.0002,3]
[351907215,1738834243207,-509.18646923,0.0002,3]
[351907217,1738834243216,-500.0,0.0002,3]
[351907219,1738834243226,-500.85933537,0.0002,3]
[351907221,1738834243235,-502.238208,0.0002,3]
[351907223,1738834243244,-500.0,0.0002,3]
[351907225,1738834243255,-500.0,0.0002,2]
[351907228,1738834243264,-500.0,0.0002,2]
[351907231,1738834243273,-500.0,0.0002,2]
[351907235,1738834243283,-500.0,0.0002,2]
[351907238,1738834243292,-501.04732386,0.0002,3]
[351907243,1738834243302,-500.0,0.0002,3]
[351907247,1738834243312,-500.0,0.0002,3]
[351907249,1738834243321,-500.0,0.0002,3]
[351907254,1738834243330,-505.8794533,0.0002,3]
[351907258,1738834243340,-500.0,0.0002,3]
[351907260,1738834243349,-500.0,0.0002,3]
[351907262,1738834243360,-501.15505522,0.0002,3]
[351907264,1738834243370,-500.0,0.0002,3]
[351907266,1738834243379,-242.87518274,0.0002,3]
[351907268,1738834243389,-506.55745759,0.0002,3]
[351907270,1738834243398,-500.0,0.0002,3]
[351907272,1738834243408,-514.10192698,0.0002,3]
[351907274,1738834243416,-500.0,0.0002,3]
[351907276,1738834243426,-478.08234217,0.0002,3]
[351907278,1738834243435,-500.0,0.0002,3]
[351907280,1738834243444,-500.0,0.0002,3]
[351907282,1738834243453,-500.0,0.0002,3]
[351907284,1738834243462,-505.46982724,0.0002,3]
[351907286,1738834243471,-500.93402654,0.0002,3]
[351907288,1738834243481,-500.0,0.0002,3]
[351907290,1738834243490,-500.0,0.0002,3]
[351907292,1738834243500,-501.86294938,0.0002,3]
[351907294,1738834243509,-500.0,0.0002,3]
[351907296,1738834243518,-500.0,0.0002,3]
[351907298,1738834243527,-507.0,0.0002,3]
[351907300,1738834243537,-500.0,0.0002,3]
[351907302,1738834243546,-502.11047019,0.0002,3]
[351907304,1738834243555,-615.48905798,0.0002,3]
[351907306,1738834243564,-537.05212649,0.0002,3]
[351907308,1738834243573,-500.0,0.0002,3]
[351907310,1738834243583,-518.98,0.0002,3]
[351907312,1738834243592,-465.62206348,0.0002,3]
[351907314,1738834243602,-500.0,0.0002,3]
[351907316,1738834243611,-649.18551669,0.0002,3]
[351907318,1738834243620,-500.0,0.0002,3]
[351907320,1738834243629,-500.0,0.0002,3]
[351907322,1738834243638,-500.0,0.0002,3]
[351907324,1738834243647,-500.0,0.0002,3]
[351907326,1738834243656,-224.39641191,0.0002,3]
[351907328,1738834243665,-500.0,0.0002,3]
[351907330,1738834243675,-500.0,0.0002,3]
[351907332,1738834243684,-500.0,0.0002,3]
[351907334,1738834243693,-500.0,0.0002,3]
[351907336,1738834243702,-500.0,0.0002,3]
[351907338,1738834243711,-500.0,0.0002,3]
[351907340,1738834243721,-500.0,0.0002,3]
[351907342,1738834243730,-500.0,0.0002,3]
[351907344,1738834243739,-500.0,0.0002,3]
[351907346,1738834243748,-500.0,0.0002,3]
[351907348,1738834243758,-500.0,0.0002,3]
[351907350,1738834243767,-500.0,0.0002,3]
[351907352,1738834243776,-500.0,0.0002,3]
[351907354,1738834243785,-500.0,0.0002,3]
[351907356,1738834243795,-500.0,0.0002,3]
[351907358,1738834243804,-500.0,0.0002,3]
[351907360,1738834243814,-501.35915371,0.0002,3]
[351907362,1738834243825,-500.0,0.0002,3]
[351907364,1738834243837,-500.0,0.0002,3]
[351907366,1738834243846,-504.33240458,0.0002,3]
[351907368,1738834243855,-500.0,0.0002,3]
[351907370,1738834243864,-500.0,0.0002,3]
[351907372,1738834243875,-503.16545297,0.0002,3]
[351907373,1738834243886,-503.94036663,0.0002,3]
[351907376,1738834243899,-500.0,0.0002,3]
[351907378,1738834243908,-500.0,0.0002,3]
[351907379,1738834243917,-500.0,0.0002,3]
[351907381,1738834243930,-502.72093974,0.0002,3]
[351907383,1738834243939,-500.0,0.0002,3]
[351907385,1738834243948,-500.0,0.0002,3]
[351907387,1738834243957,-502.94401873,0.0002,3]
[351907389,1738834243967,-563.13130617,0.0002,3]
[351907392,1738834243977,-500.0,0.0002,3]
[351907394,1738834243987,-505.52399469,0.0002,3]
[351907396,1738834243996,-500.65000705,0.0002,3]
[351907398,1738834244007,-500.0,0.0002,3]
[351907400,1738834244018,-504.20199347,0.0002,3]
[351907402,1738834244028,-500.0,0.0002,3]
[351907404,1738834244037,-501.16162729,0.0002,3]
[351907406,1738834244047,-500.0,0.0002,3]
[351907408,1738834244056,-500.0,0.0002,3]
[351907410,1738834244065,-500.0,0.0002,3]
[351907412,1738834244075,-500.0,0.0002,3]
[351907414,1738834244084,-212.24539802,0.0002,3]
[351907416,1738834244093,-500.0,0.0002,3]
[351907418,1738834244103,-500.0,0.0002,3]
[351907420,1738834244112,-500.0,0.0002,3]
[351907422,1738834244121,-503.26445051,0.0002,3]
[351907424,1738834244130,-276.63402192,0.0002,3]
[351907426,1738834244140,-524.37947297,0.0002,3]
[351907428,1738834244149,-504.95141403,0.0002,3]
[351907430,1738834244158,-500.0,0.0002,3]
[351907432,1738834244168,-234.5353464,0.0002,3]
[351907434,1738834244177,-500.0,0.0002,3]
[351907436,1738834244187,-500.0,0.0002,3]
[351907438,1738834244196,-503.0496763,0.0002,3]
[351907440,1738834244205,-500.0,0.0002,3]
[351907442,1738834244215,-500.0,0.0002,3]
[351907444,1738834244224,-263.30624604,0.0002,3]
[351907446,1738834244234,-500.0,0.0002,3]
[351907448,1738834244244,-500.0,0.0002,3]
[351907450,1738834244253,-500.0,0.0002,3]
[351907452,1738834244262,-503.34238413,0.0002,3]
[351907454,1738834244272,-500.0,0.0002,3]
[351907456,1738834244281,-500.0,0.0002,3]
[351907458,1738834244291,-500.0,0.0002,3]
[351907460,1738834244300,-500.0,0.0002,3]
[351907462,1738834244310,-500.0,0.0002,3]
[351907464,1738834244320,-500.0,0.0002,3]
[351907466,1738834244329,-500.0,0.0002,3]
[351907468,1738834244338,-500.0,0.0002,3]
[351907470,1738834244348,-500.0,0.0002,3]
[351907472,1738834244357,-500.0,0.0002,3]
[351907474,1738834244366,-500.0,0.0002,3]
[351907476,1738834244376,-505.1455004,0.0002,3]
[351907478,1738834244385,-500.0,0.0002,3]
[351907480,1738834244395,-594.33410526,0.0002,3]
[351907482,1738834244404,-186.49283622,0.0002,3]
[351907484,1738834244414,-500.0,0.0002,3]
[351907486,1738834244423,-500.0,0.0002,3]
[351907488,1738834244432,-500.0,0.0002,3]
[351907490,1738834244442,-500.0,0.0002,3]
[351907492,1738834244452,-500.0,0.0002,3]
[351907494,1738834244462,-500.0,0.0002,3]
[351907496,1738834244471,-500.0,0.0002,3]
[351907498,1738834244480,-500.0,0.0002,3]
[351907500,1738834244489,-333.33095714,0.0002,3]
[351907502,1738834244498,-440.64870012,0.0002,3]
[351907503,1738834244507,-501.57706018,0.0002,3]
[351907505,1738834244517,-500.0,0.0002,3]
[351907508,1738834244526,-500.0,0.0002,3]
[351907510,1738834244536,-589.18,0.0002,3]
[351907512,1738834244546,-500.0,0.0002,3]
[351907514,1738834244556,-500.0,0.0002,3]
[351907516,1738834244565,-500.0,0.0002,3]
[351907518,1738834244575,-500.0,0.0002,3]
[351907520,1738834244585,-500.0,0.0002,3]
[351907522,1738834244595,-240.20338234,0.0002,3]
[351907524,1738834244604,-502.29521538,0.0002,3]
[351907525,1738834244613,-500.0,0.0002,3]
[351907526,1738834244622,-500.0,0.0002,3]
[351907527,1738834244631,-505.32430455,0.0002,3]
[351907528,1738834244640,-500.0,0.0002,3]
[351907529,1738834244649,-501.28646395,0.0002,3]
[351907530,1738834244658,-518.00187235,0.0002,3]
[351907531,1738834244667,-502.14575237,0.0002,3]
[351907532,1738834244676,-500.0,0.0002,3]
[351907533,1738834244684,-628.70353404,0.0002,3]
[351907534,1738834244692,-500.0,0.0002,3]
[351907535,1738834244701,-505.67478626,0.0002,3]
[351907536,1738834244711,-501.11635709,0.0002,3]
[351907537,1738834244720,-500.0,0.0002,3]
[351907538,1738834244729,-500.0,0.0002,3]
[351907539,1738834244738,-500.0,0.0002,3]
[351907540,1738834244747,-504.11046126,0.0002,3]
[351907542,1738834244756,-500.0,0.0002,3]
[351907544,1738834244765,-500.0,0.0002,3]
[351907546,1738834244774,-500.0,0.0002,3]
[351907548,1738834244784,-505.83887275,0.0002,3]
[351907550,1738834244793,-500.0,0.0002,3]
[351907552,1738834244803,-500.0,0.0002,3]
[351907554,1738834244813,-504.21749029,0.0002,3]
[351907556,1738834244823,-500.0,0.0002,3]
[351907558,1738834244833,-500.0,0.0002,3]
[351907560,1738834244842,-500.0,0.0002,3]
[351907562,1738834244852,-503.59384647,0.0002,3]
[351907564,1738834244862,-357.31687203,0.0002,3]
[351907566,1738834244871,-500.0,0.0002,3]
[351907568,1738834244881,-519.44775236,0.0002,3]
[351907570,1738834244890,-479.29641005,0.0002,3]
[351907572,1738834244900,-500.0,0.0002,3]
[351907574,1738834244909,-500.0,0.0002,3]
[351907576,1738834244918,-500.0,0.0002,3]
[351907578,1738834244929,-505.4141853,0.0002,3]
[351907580,1738834244938,-500.0,0.0002,3]
[351907582,1738834244948,-500.0,0.0002,3]
[351907584,1738834244958,-346.55393937,0.0002,3]
[351907586,1738834244969,-500.0,0.0002,3]
[351907588,1738834244979,-500.0,0.0002,3]
[351907590,1738834244989,-234.11780231,0.0002,3]
[351907592,1738834244999,-500.0,0.0002,3]
[351907594,1738834245012,-500.0,0.0002,3]
[351907596,1738834245023,-500.0,0.0002,3]
[351907598,1738834245033,-500.0,0.0002,3]
[351907600,1738834245042,-500.0,0.0002,3]
[351907602,1738834245052,-249.61730632,0.0002,3]
[351907604,1738834245064,-500.0,0.0002,3]
[351907606,1738834245074,-500.0,0.0002,3]
[351907608,1738834245084,-500.0,0.0002,3]
[351907610,1738834245093,-504.32710288,0.0002,3]
[351907612,1738834245103,-378.35989729,0.0002,3]
[351907614,1738834245112,-502.61424411,0.0002,3]
[351907616,1738834245122,-500.0,0.0002,3]
[351907618,1738834245131,-500.0,0.0002,3]
[351907620,1738834245140,-500.0,0.0002,3]
[351907622,1738834245150,-500.0,0.0002,3]
[351907624,1738834245160,-500.0,0.0002,3]
[351907626,1738834245169,-500.0,0.0002,3]
[351907628,1738834245178,-500.0,0.0002,3]
[351907630,1738834245187,-320.41,0.0002,3]
[351907632,1738834245196,-500.0,0.0002,3]
[351907634,1738834245205,-278.67579082,0.0002,3]
[351907635,1738834245215,-500.0,0.0002,3]
[351907637,1738834245224,-500.0,0.0002,3]
[351907639,1738834245234,-500.0,0.0002,3]
[351907641,1738834245244,-604.23847051,0.0002,3]
[351907643,1738834245253,-500.0,0.0002,3]
[351907645,1738834245262,-500.0,0.0002,3]
[351907647,1738834245271,-500.0,0.0002,3]
[351907649,1738834245280,-500.0,0.0002,3]
[351907651,1738834245290,-500.0,0.0002,3]
[351907653,1738834245299,-500.0,0.0002,3]
[351907655,1738834245310,-500.0,0.0002,3]
[351907657,1738834245319,-500.0,0.0002,3]
[351907659,1738834245329,-500.0,0.0002,3]
[351907661,1738834245339,-500.0,0.0002,3]
[351907663,1738834245348,-500.0,0.0002,3]
[351907665,1738834245357,-500.0,0.0002,3]
[351907667,1738834245366,-500.0,0.0002,3]
[351907669,1738834245376,-523.47081538,0.0002,3]
[351907671,1738834245385,-500.0,0.0002,3]
[351907673,1738834245395,-500.0,0.0002,3]
[351907675,1738834245405,-500.0,0.0002,3]
[351907677,1738834245413,-500.0,0.0002,3]
[351907679,1738834245423,-500.0,0.0002,3]
[351907681,1738834245433,-500.0,0.0002,3]
[351907683,1738834245442,-500.0,0.0002,3]
[351907685,1738834245451,-500.0,0.0002,3]
[351907687,1738834245460,-500.0,0.0002,3]
[351907689,1738834245470,-500.0,0.0002,3]
[351907691,1738834245479,-500.0,0.0002,3]
[351907693,1738834245487,-560.28246106,0.0002,3]
[351907695,1738834245496,-500.0,0.0002,3]
[351907697,1738834245506,-279.51879804,0.0002,3]
[351907699,1738834245515,-500.0,0.0002,3]
[351907701,1738834245524,-500.0,0.0002,3]
[351907703,1738834245535,-500.0,0.0002,3]
[351907705,1738834245544,-500.0,0.0002,3]
[351907707,1738834245553,-500.0,0.0002,3]
[351907709,1738834245564,-500.0,0.0002,3]
[351907711,1738834245573,-500.0,0.0002,3]
[351907713,1738834245582,-500.0,0.0002,3]
[351907715,1738834245591,-500.0,0.0002,3]
[351907717,1738834245601,-500.0,0.0002,3]
[351907719,1738834245611,-500.0,0.0002,3]
[351907721,1738834245620,-503.62002974,0.0002,3]
[351907724,1738834245629,-500.0,0.0002,3]
[351907726,1738834245639,-500.0,0.0002,3]
[351907728,1738834245648,-500.0,0.0002,3]
[351907730,1738834245658,-500.0,0.0002,3]
[351907732,1738834245668,-500.0,0.0002,3]
[351907734,1738834245677,-497.50244264,0.0002,3]
[351907736,1738834245687,-500.0,0.0002,3]
[351907738,1738834245697,-500.0,0.0002,3]
[351907740,1738834245706,-500.0,0.0002,3]
[351907742,1738834245716,-503.28047415,0.0002,3]
[351907744,1738834245726,-500.0,0.0002,3]
[351907746,1738834245735,-500.0,0.0002,3]
[351907765,1738834245868,-375.37847966,0.0002,3]
[351907767,1738834245877,-281.09137846,0.0002,3]
[351907769,1738834245887,-500.0,0.0002,3]
[351907771,1738834245896,-500.0,0.0002,3]
[351907773,1738834245906,-637.44315912,0.0002,3]
[351907775,1738834245915,-500.0,0.0002,3]
[351907777,1738834245929,-500.0,0.0002,3]
[351907780,1738834245938,-393.13358512,0.0002,3]
[351907783,1738834245948,-500.0,0.0002,3]
[351907787,1738834245957,-500.0,0.0002,3]
[351907789,1738834245967,-500.0,0.0002,3]
[351907791,1738834245978,-505.39710402,0.0002,3]
[351907793,1738834245987,-500.0,0.0002,3]
[351907795,1738834245996,-502.49889389,0.0002,3]
[351907797,1738834246005,-500.0,0.0002,3]
[351907799,1738834246015,-500.0,0.0002,3]
[351907801,1738834246024,-500.0,0.0002,3]
[351907803,1738834246033,-500.0,0.0002,3]
[351907805,1738834246043,-500.0,0.0002,3]
[351907807,1738834246052,-500.0,0.0002,3]
[351907809,1738834246063,-500.0,0.0002,3]
[351907811,1738834246072,-506.9174051,0.0002,3]
[351907813,1738834246081,-500.0,0.0002,3]
[351907815,1738834246090,-500.0,0.0002,3]
[351907817,1738834246100,-500.0,0.0002,3]
[351907819,1738834246109,-500.0,0.0002,3]
[351907821,1738834246118,-232.84037845,0.0002,3]
[351907823,1738834246127,-500.0,0.0002,3]
[351907825,1738834246136,-500.0,0.0002,3]
[351907826,1738834246145,-500.0,0.0002,3]
[351907828,1738834246155,-500.0,0.0002,3]
[351907831,1738834246164,-500.0,0.0002,3]
[351907832,1738834246174,-500.0,0.0002,3]
[351907835,1738834246183,-500.0,0.0002,3]
[351907836,1738834246193,-500.0,0.0002,3]
[351907838,1738834246202,-500.0,0.0002,3]
[351907841,1738834246212,-500.0,0.0002,3]
[351907843,1738834246222,-500.0,0.0002,3]
[351907845,1738834246232,-500.0,0.0002,2]
[351907847,1738834246241,-500.0,0.0002,3]
[351907848,1738834246250,-500.0,0.0002,2]
[351907850,1738834246259,-500.0,0.0002,3]
[351907852,1738834246268,-500.0,0.0002,2]
[351907854,1738834246277,-500.0,0.0002,3]
[351907856,1738834246287,-500.0,0.0002,3]
[351907858,1738834246296,-500.0,0.0002,3]
[351907861,1738834246305,-500.0,0.0002,3]
[351907862,1738834246316,-500.0,0.0002,3]
[351907864,1738834246325,-500.0,0.0002,3]
[351907867,1738834246335,-500.0,0.0002,3]
[351907868,1738834246344,-500.0,0.0002,3]
[351907870,1738834246354,-171.88000002,0.0002,3]
[351907872,1738834246363,-500.0,0.0002,3]
[351907875,1738834246373,-500.0,0.0002,3]
[351907877,1738834246383,-500.0,0.0002,3]
[351907879,1738834246393,-500.0,0.0002,3]
[351907880,1738834246403,-500.0,0.0002,3]
[351907882,1738834246413,-500.0,0.0002,3]
[351907885,1738834246422,-500.0,0.0002,3]
[351907887,1738834246431,-500.0,0.0002,3]
[351907888,1738834246441,-500.0,0.0002,3]
[351907891,1738834246451,-500.0,0.0002,3]
[351907893,1738834246460,-500.0,0.0002,3]
[351907895,1738834246470,-500.0,0.0002,3]
[351907897,1738834246480,-500.0,0.0002,3]
[351907899,1738834246490,-500.0,0.0002,3]
[351907901,1738834246499,-561.92056775,0.0002,3]
[351907903,1738834246509,-500.0,0.0002,3]
[351907905,1738834246518,-501.29706162,0.0002,3]
[351907907,1738834246528,-500.0,0.0002,3]
[351907909,1738834246537,-500.0,0.0002,3]
[351907911,1738834246547,-500.0,0.0002,3]
[351907913,1738834246557,-500.0,0.0002,3]
[351907915,1738834246566,-500.0,0.0002,3]
[351907917,1738834246575,-500.0,0.0002,3]
[351907919,1738834246585,-500.0,0.0002,3]
[351907921,1738834246594,-500.0,0.0002,3]
[351907923,1738834246604,-500.0,0.0002,3]
[351907925,1738834246613,-500.0,0.0002,3]
[351907927,1738834246622,-500.0,0.0002,3]
[351907929,1738834246631,-500.0,0.0002,3]
[351907931,1738834246640,-500.0,0.0002,3]
[351907933,1738834246649,-500.0,0.0002,3]
[351907935,1738834246658,-484.02934794,0.0002,3]
[351907937,1738834246667,-500.0,0.0002,3]
[351907939,1738834246676,-500.0,0.0002,3]
[351907940,1738834246685,-500.0,0.0002,3]
[351907942,1738834246695,-500.0,0.0002,3]
[351907945,1738834246704,-500.0,0.0002,3]
[351907946,1738834246713,-500.0,0.0002,3]
[351907949,1738834246722,-500.0,0.0002,3]
[351907951,1738834246732,-500.0,0.0002,3]
[351907953,1738834246741,-500.0,0.0002,3]
[351907955,1738834246750,-504.58460537,0.0002,3]
[351907957,1738834246759,-450.36,0.0002,3]
[351907958,1738834246769,-500.0,0.0002,3]
[351907960,1738834246778,-500.0,0.0002,3]
[351907962,1738834246787,-94244.3326107,0.0002,2]
[351908016,1738834247285,-5883.6766488,0.0002,2]
[351908053,1738834247627,-1364.6019178,0.0002,2]
[351908055,1738834247639,-1972.49837682,0.0002,2]
[351908060,1738834247695,-11562.49741245,0.0002,2]
[351908068,1738834248071,-52410.17648573,0.0002,2]
[351908069,1738834248087,-4745.17803497,0.0002,2]
[351908070,1738834248100,-8128.712051,0.0002,2]
[351908071,1738834248117,-1194.94706029,0.0002,2]
[351908072,1738834248281,-2949.75,0.0002,2]
[351908073,1738834248298,-68939.72213506,0.0002,2]
[351908095,1738834248780,-591.8203301,0.0002,2]
[351908097,1738834248793,-3320.38303517,0.0002,2]
[351908100,1738834248806,-2949.48873,0.0002,2]
[351908102,1738834248821,-2856.55950207,0.0002,2]
[351908979,1738835432283,-297.59444248,8.836e-05,2]
[351908980,1738835432296,-3216.67175752,8.836e-05,2]
[351908981,1738835432307,-228.3031,8.851e-05,2]
[351908982,1738835432317,-167.49,0.00010137,2]
[351908983,1738835432329,-550.0,0.00013,2]
[351908984,1738835432339,-600.0,0.00015,2]
[351908985,1738835432349,-347.55,0.00016758,2]
[351908986,1738835432359,-167.49,0.00016813,2]
[351908987,1738835432370,-650.0,0.00017,2]
[351908988,1738835432380,-167.55,0.00018157,2]
[351908989,1738835432390,-167.67,0.00018384,2]
[351908990,1738835432399,-186.67,0.0001847,2]
[351908991,1738835432410,-500.0,0.00018529,2]
[351908992,1738835432419,-508.70267612,0.00018586,2]
[351908993,1738835432431,-491.29732388,0.00018586,2]
[351908994,1738835432441,-438.9,0.00018608,2]
[351908995,1738835432451,-1000.0,0.0001873,2]
[351908996,1738835432461,-301.65,0.00018903,30]
[351908997,1738835432470,-188.59,0.00018978,2]
[351908998,1738835432479,-300.0,0.00018999,2]
[351908999,1738835432489,-700.0,0.00019,2]
[351909000,1738835432499,-506.36,0.00019002,2]
[351909001,1738835432509,-347.55,0.00019022,2]
[351909002,1738835432518,-155.85,0.00019178,2]
[351909003,1738835432528,-191.65,0.0001926,2]
[351909004,1738835432537,-150.0,0.0001926,2]
[351909005,1738835432547,-2836.666256,0.00019599,2]
[351909006,1738835432556,-278.54077543,0.00019609,2]
[351909007,1738835432576,-1114.45922457,0.00019609,2]
[351909008,1738835432585,-153.0,0.00019704,2]
[351909009,1738835432595,-150.0,0.00019731,2]
[351909010,1738835432604,-228.77995392,0.00019733,2]
[351909011,1738835432614,-1000.0,0.00019757,2]
[351909012,1738835432623,-150.0,0.00019757,2]
[351909013,1738835432632,-150.0,0.00019761,2]
[351909014,1738835432642,-150.0,0.00019773,2]
[351909015,1738835432651,-189.70475109,0.000198,3]
[351909016,1738835432661,-1393.0,0.00019811,2]
[351909017,1738835432671,-1000.0,0.00019812,2]
[351909018,1738835432680,-150.0,0.00019819,2]
[351909019,1738835432689,-150.0,0.00019824,2]